fUSD/lending_fUSD_20240412
["ID","MTS","AMOUNT","RATE_DAILY","PERIOD"]
[322236467,1712908244234,-599.86,0.00027397,2]
[322236468,1712908244243,-878.71,0.00027397,2]
[322236469,1712908244252,-500.0,0.00027397,2]
[322236470,1712908244262,-500.0,0.00027397,2]
[322236471,1712908244271,-1997.14,0.00027397,2]
[322236472,1712908244281,-500.0,0.00027397,2]
[322236473,1712908244290,-500.0,0.00027397,2]
[322236474,1712908244299,-500.0,0.00027397,2]
[322236475,1712908244308,-510.86018858,0.00027397,2]
[322236476,1712908244317,-500.0,0.00027397,2]
[322236477,1712908244326,-500.0,0.00027397,2]
[322236478,1712908244336,-556.33,0.00027397,2]
[322236479,1712908244345,-500.0,0.00027397,2]
[322236480,1712908244355,-500.0,0.00027397,2]
[322236481,1712908244364,-2019.65,0.00027397,2]
[322236482,1712908244373,-500.0,0.00027397,2]
[322236483,1712908244383,-500.0,0.00027397,2]
[322236484,1712908244391,-500.0,0.00027397,2]
[322236485,1712908244400,-139.04514026,0.00027397,2]
[322236486,1712908244412,-664.53485974,0.00027397,2]
[322236487,1712908244421,-5158.84,0.00027397,2]
[322236488,1712908244431,-618.92,0.00027397,2]
[322236489,1712908244441,-500.0,0.00027397,2]
[322236490,1712908244452,-618.92,0.00027397,2]
[322236491,1712908244462,-500.0,0.00027397,2]
[322236492,1712908244471,-500.0,0.00027397,2]
[322236493,1712908244480,-500.0,0.00027397,2]
[322236494,1712908244489,-500.0,0.00027397,2]
[322236495,1712908244498,-500.0,0.00027397,2]
[322236496,1712908244507,-500.0,0.00027397,2]
[322236497,1712908244516,-500.0,0.00027397,2]
[322236498,1712908244525,-5386.75,0.00027397,2]
[322236499,1712908244534,-1701.71,0.00027397,2]
[322236500,1712908244542,-500.0,0.00027397,2]
[322236501,1712908244552,-506.12671531,0.00027397,2]
[322236502,1712908244561,-1163.01,0.00027397,2]
[322236503,1712908244570,-500.0,0.00027397,2]
[322236504,1712908244579,-500.0,0.00027397,2]
[322236505,1712908244588,-561.83850198,0.00027397,2]
[322236506,1712908244597,-500.0,0.00027397,2]
[322236507,1712908244606,-526.86381402,0.00027397,2]
[322236508,1712908244616,-500.0,0.00027397,2]
[322236509,1712908244625,-500.0,0.00027397,2]
[322236510,1712908244634,-500.0,0.00027397,2]
[322236511,1712908244644,-500.0,0.00027397,2]
[322236512,1712908244655,-839.55,0.00027397,2]
[322236513,1712908244663,-1100.42,0.00027397,2]
[322236514,1712908244672,-500.0,0.00027397,2]
[322236515,1712908244681,-500.0,0.00027397,2]
[322236516,1712908244691,-511.2609775,0.00027397,2]
[322236517,1712908244700,-927.37,0.00027397,2]
[322236518,1712908244709,-500.0,0.00027397,2]
[322236519,1712908244718,-500.0,0.00027397,2]
[322236520,1712908244727,-607.45642259,0.00027397,2]
[322236521,1712908244736,-507.2435681,0.00027397,2]
[322236522,1712908244745,-552.18,0.00027397,2]
[322236523,1712908244754,-836.71,0.00027397,2]
[322236524,1712908244763,-500.0,0.00027397,2]
[322236525,1712908244772,-448.64762469,0.00027397,2]
[322236526,1712908244781,-500.0,0.00027397,2]
[322236527,1712908244790,-500.0,0.00027397,2]
[322236528,1712908244799,-1453.15,0.00027397,3]
[322236529,1712908244808,-1453.15,0.00027397,3]
[322236530,1712908244817,-1453.15,0.00027397,3]
[322236531,1712908244826,-500.0,0.00027397,2]
[322236532,1712908244835,-1453.15,0.00027397,3]
[322236533,1712908244844,-500.0,0.00027397,2]
[322236534,1712908244854,-1453.15,0.00027397,3]
[322236535,1712908244863,-1453.15,0.00027397,3]
[322236536,1712908244872,-1453.15,0.00027397,3]
[322236537,1712908244882,-1453.15,0.00027397,3]
[322236538,1712908244891,-1453.15,0.00027397,3]
[322236539,1712908244900,-1024.21,0.00027397,2]
[322236540,1712908244909,-500.0,0.00027397,2]
[322236541,1712908244919,-1453.15,0.00027397,3]
[322236542,1712908244929,-1453.15,0.00027397,3]
[322236543,1712908244940,-1453.15,0.00027397,3]
[322236544,1712908244951,-1453.15,0.00027397,3]
[322236545,1712908244962,-1453.15,0.00027397,3]
[322236546,1712908244971,-1453.15,0.00027397,3]
[322236547,1712908244980,-1453.15,0.00027397,3]
[322236548,1712908244989,-1453.15,0.00027397,3]
[322236549,1712908244998,-1970.31,0.00027397,2]
[322236550,1712908245007,-1453.15,0.00027397,3]
[322236551,1712908245016,-1453.15,0.00027397,3]
[322236552,1712908245025,-332.99614532,0.00027397,2]
[322236554,1712908245212,-167.00385468,0.00027397,2]
[322236555,1712908245223,-1267.85039592,0.00027397,3]
[322236557,1712908245236,-185.29960408,0.00027397,3]
[322236558,1712908245245,-353.76322733,0.00027397,2]
[322236574,1712908245445,-146.23677267,0.00027397,2]
[322236575,1712908245455,-1453.15,0.00027397,3]
[322236576,1712908245466,-1220.07097447,0.00027397,3]
[322236577,1712908245477,-233.07902553,0.00027397,3]
[322236578,1712908245487,-500.0,0.00027397,2]
[322236579,1712908245496,-1453.15,0.00027397,3]
[322236580,1712908245505,-1453.28897189,0.00027397,3]
[322236581,1712908245514,-500.0,0.00027397,2]
[322236582,1712908245523,-327.48616573,0.00027397,2]
[322236583,1712908245535,-172.51383427,0.00027397,2]
[322236584,1712908245544,-218.73575054,0.00027397,2]
[322236585,1712908245556,-1882.17424946,0.00027397,2]
[322236586,1712908245566,-500.0,0.00027397,2]
[322236587,1712908245576,-514.6386813,0.00027397,2]
[322236588,1712908245585,-500.0,0.00027397,2]
[322236589,1712908245594,-500.0,0.00027397,2]
[322236590,1712908245604,-500.0,0.00027397,2]
[322236591,1712908245613,-2029.36,0.00027397,2]
[322236592,1712908245623,-1368.98,0.00027397,2]
[322236593,1712908245633,-496.54392508,0.00027397,2]
[322236594,1712908245642,-500.0,0.00027397,2]
[322236595,1712908245651,-500.0,0.00027397,2]
[322236596,1712908245660,-775.47,0.00027397,2]
[322236597,1712908245669,-533.36,0.00027397,2]
[322236598,1712908245679,-500.0,0.00027397,2]
[322236599,1712908245688,-1149.47317419,0.00027397,2]
[322236600,1712908245718,-1583.60682581,0.00027397,2]
[322236601,1712908245726,-500.0,0.00027397,2]
[322236602,1712908245735,-500.0,0.00027397,2]
[322236603,1712908245745,-509.79559136,0.00027397,2]
[322236604,1712908245754,-500.0,0.00027397,2]
[322236605,1712908245763,-307.13215234,0.00027397,2]
[322236606,1712908245774,-734.96784766,0.00027397,2]
[322236607,1712908245784,-2589.87,0.00027397,2]
[322236608,1712908245793,-500.0,0.00027397,2]
[322236609,1712908245802,-371.35289386,0.00027397,2]
[322236610,1712908246168,-128.64710614,0.00027397,2]
[322236611,1712908246178,-888.64907077,0.00027397,2]
[322236612,1712908330417,150.0,0.00034159,30]
[322236614,1712908341805,150.0,0.00034159,30]
[322236615,1712908359851,830.15335039,0.00034159,30]
[322236616,1712908396533,1000.0,0.00034159,30]
[322236617,1712908410560,1000.0,0.00034159,30]
[322236618,1712908411583,1000.0,0.00034159,30]
[322236619,1712908435119,420.0,0.00034159,30]
[322236620,1712908463531,780.0,0.00034159,30]
[322236622,1712908497286,299.99999985,0.00034172,30]
[322236636,1712908753411,25000.0,0.00034172,30]
[322236649,1712909064262,25000.0,0.00034178,30]
[322236655,1712909167341,25000.0,0.00034178,30]
[322236657,1712909374223,25000.0,0.00034178,30]
[322236658,1712909380284,177446.4849,0.00034178,30]
[322236659,1712909407266,-393.84427013,0.000209,2]
[322236660,1712909407292,-1633.51908166,0.000209,2]
[322236661,1712909407322,-305.47902704,0.000209,2]
[322236662,1712909407350,-3929.75581392,0.000209,2]
[322236663,1712909407378,-1067.0,0.000209,2]
[322236664,1712909407406,-162.11,0.00020989,2]
[322236665,1712909407432,-491.27614108,0.00020998,2]
[322236666,1712909407460,-150.0,0.00020998,2]
[322236667,1712909407485,-439078.72365835,0.00020999,2]
[322236695,1712909431625,-30926.37557296,0.00020999,2]
[322236698,1712909431739,-734.66922033,0.00020999,2]
[322236699,1712909431795,-72724.19430925,0.00020999,2]
[322236700,1712909431807,-1105.79495962,0.00020999,2]
[322236701,1712909431851,-753.00920048,0.00020999,2]
[322236702,1712909431861,-6278.15386105,0.00021,2]
[322236703,1712909431961,-594.75831664,0.00021,2]
[322236704,1712909431973,-688.81808505,0.00021,2]
[322236715,1712909438465,-14092.32698564,0.00021,2]
[322236716,1712909438482,-503.24925097,0.00021,2]
[322236718,1712909438986,-78555.46007127,0.00021,2]
[322236719,1712909438995,-161.97973851,0.00022022,2]
[322236720,1712909439005,-1633.51908162,0.00022122,2]
[322236721,1712909439014,-3929.75581384,0.00022122,2]
[322236722,1712909439027,-393.84427006,0.00022471,2]
[322236723,1712909439036,-1633.51908162,0.00023344,2]
[322236724,1712909439045,-3929.75581384,0.00023344,2]
[322236725,1712909439055,-987.22,0.00023672,2]
[322236726,1712909439065,-393.84427006,0.00024043,2]
[322236727,1712909439074,-1633.51908162,0.00024567,2]
[322236728,1712909439084,-3929.75581384,0.00024567,2]
[322236729,1712909439094,-465.0,0.000253,2]
[322236730,1712909439103,-360.0,0.00025459,2]
[322236731,1712909439113,-240.0,0.00025596,2]
[322236732,1712909439122,-393.84427006,0.00025614,2]
[322236733,1712909439131,-182.15,0.00025627,2]
[322236734,1712909439141,-173.09,0.00025649,2]
[322236735,1712909439150,-250.0,0.00025652,2]
[322236736,1712909439159,-1633.51908162,0.00025789,2]
[322236737,1712909439168,-3929.75581384,0.00025789,2]
[322236738,1712909439177,-1018.41,0.00025808,2]
[322236739,1712909439186,-215.7,0.00025833,2]
[322236740,1712909439196,-987.22,0.00025936,2]
[322236741,1712909439205,-640.0,0.00026039,2]
[322236742,1712909439215,-7630.05,0.00026591,2]
[322236743,1712909439224,-157.19502031,0.00026848,2]
[322236744,1712909439233,-1633.51908162,0.00027011,2]
[322236745,1712909439242,-3929.75581384,0.00027011,2]
[322236746,1712909439251,-507.92105,0.0002712,2]
[322236747,1712909439260,-301.40372094,0.00027122,4]
[322236748,1712909439270,-393.84427006,0.00027186,3]
[322236749,1712909439279,-154.20406454,0.00027195,2]
[322236750,1712909439288,-155.75305263,0.00027284,2]
[322236751,1712909439301,-3179.7007161,0.00027288,2]
[322236752,1712909439310,-155.60330925,0.00027297,2]
[322236753,1712909439320,-185.48564514,0.00027297,2]
[322236754,1712909439329,-197.9808932,0.00027297,2]
[322236755,1712909439339,-163.459364,0.00027378,2]
[322236756,1712909439348,-302.57401781,0.00027395,2]
[322236758,1712909439357,-155.1757232,0.00027395,2]
[322236759,1712909439366,-298.45663972,0.00027395,2]
[322236760,1712909439376,-487.71621001,0.00027395,2]
[322236761,1712909439385,-198.32066242,0.00027395,2]
[322236762,1712909439394,-256.17339078,0.00027396,2]
[322236763,1712909439403,-8618.88524382,0.00027396,2]
[322236764,1712909439412,-501.74199703,0.00027397,2]
[322236765,1712909439421,-500.0,0.00027397,2]
[322236766,1712909439432,-501.21812154,0.00027397,2]
[322236767,1712909439443,-765.28080904,0.00027397,2]
[322236768,1712909439452,-500.0,0.00027397,2]
[322236769,1712909439461,-500.0,0.00027397,2]
[322236770,1712909439470,-500.0,0.00027397,2]
[322236771,1712909439479,-203.90154285,0.00027397,2]
[322236772,1712909439488,-576.17922681,0.00027397,2]
[322236773,1712909439498,-500.0,0.00027397,2]
[322236774,1712909439509,-500.0,0.00027397,2]
[322236775,1712909439519,-500.0,0.00027397,2]
[322236776,1712909439529,-500.0,0.00027397,2]
[322236777,1712909439542,-320.72461445,0.00027397,2]
[322236778,1712909439552,-500.0,0.00027397,2]
[322236779,1712909439564,-500.0,0.00027397,2]
[322236780,1712909439574,-375.04221208,0.00027397,2]
[322236781,1712909439586,-500.0,0.00027397,2]
[322236782,1712909439596,-500.0,0.00027397,2]
[322236783,1712909439607,-500.0,0.00027397,2]
[322236784,1712909439616,-500.0,0.00027397,2]
[322236785,1712909439626,-500.0,0.00027397,2]
[322236786,1712909439636,-500.0,0.00027397,2]
[322236787,1712909439647,-503.81293218,0.00027397,2]
[322236788,1712909439656,-500.0,0.00027397,2]
[322236789,1712909439666,-500.0,0.00027397,2]
[322236790,1712909439677,-644.25349159,0.00027397,2]
[322236791,1712909439686,-500.0,0.00027397,2]
[322236792,1712909439696,-500.0,0.00027397,2]
[322236793,1712909439706,-500.0,0.00027397,2]
[322236794,1712909439715,-497.17856191,0.00027397,2]
[322236795,1712909439725,-507.74632074,0.00027397,2]
[322236796,1712909439735,-500.87822345,0.00027397,2]
[322236797,1712909439745,-500.0,0.00027397,2]
[322236798,1712909439754,-248.74235135,0.00027397,2]
[322236799,1712909439764,-503.21399859,0.00027397,2]
[322236800,1712909439774,-501.61249095,0.00027397,2]
[322236801,1712909439783,-500.91227566,0.00027397,2]
[322236802,1712909439793,-500.0,0.00027397,2]
[322236803,1712909439803,-443.86373126,0.00027397,2]
[322236804,1712909439813,-501.85280229,0.00027397,2]
[322236805,1712909439823,-500.0,0.00027397,2]
[322236806,1712909439835,-500.0,0.00027397,2]
[322236807,1712909439846,-500.7849852,0.00027397,2]
[322236808,1712909439856,-513.67051309,0.00027397,2]
[322236809,1712909439865,-500.0,0.00027397,2]
[322236810,1712909439875,-500.0,0.00027397,2]
[322236811,1712909439885,-500.0,0.00027397,2]
[322236812,1712909439896,-509.72777732,0.00027397,2]
[322236813,1712909439906,-501.40573121,0.00027397,2]
[322236814,1712909439915,-500.75233492,0.00027397,2]
[322236815,1712909439927,-504.46825185,0.00027397,2]
[322236816,1712909439937,-500.5714647,0.00027397,2]
[322236817,1712909439946,-389.8249443,0.00027397,2]
[322236818,1712909439956,-507.13384875,0.00027397,2]
[322236819,1712909439966,-501.45109582,0.00027397,2]
[322236820,1712909439976,-501.46239046,0.00027397,2]
[322236821,1712909439985,-500.64618211,0.00027397,2]
[322236822,1712909439996,-500.0,0.00027397,2]
[322236823,1712909440006,-499.72089801,0.00027397,2]
[322236824,1712909440016,-306.96357289,0.00027397,2]
[322236825,1712909440026,-500.82543452,0.00027397,2]
[322236826,1712909440035,-533.27432175,0.00027397,2]
[322236827,1712909440045,-500.33085619,0.00027397,2]
[322236828,1712909440055,-500.39418614,0.00027397,2]
[322236829,1712909440065,-502.44907822,0.00027397,2]
[322236830,1712909440074,-500.0,0.00027397,2]
[322236831,1712909440084,-500.0,0.00027397,2]
[322236832,1712909440094,-500.0,0.00027397,2]
[322236833,1712909440103,-500.0,0.00027397,2]
[322236834,1712909440113,-500.76201506,0.00027397,2]
[322236835,1712909440122,-500.0,0.00027397,2]
[322236836,1712909440131,-500.0,0.00027397,2]
[322236837,1712909440141,-500.0,0.00027397,2]
[322236838,1712909440150,-500.0,0.00027397,2]
[322236839,1712909440159,-500.0,0.00027397,2]
[322236840,1712909440169,-500.30380455,0.00027397,2]
[322236841,1712909440181,-500.0,0.00027397,2]
[322236842,1712909440191,-500.0,0.00027397,2]
[322236843,1712909440200,-500.32054849,0.00027397,2]
[322236844,1712909440211,-500.0,0.00027397,2]
[322236845,1712909440221,-638.55959201,0.00027397,2]
[322236846,1712909440231,-301.88208351,0.00027397,2]
[322236847,1712909440242,-500.0,0.00027397,2]
[322236848,1712909440251,-500.0,0.00027397,2]
[322236849,1712909440263,-500.57102322,0.00027397,2]
[322236850,1712909440273,-507.58903345,0.00027397,2]
[322236851,1712909440282,-500.0,0.00027397,2]
[322236852,1712909440292,-500.0,0.00027397,2]
[322236853,1712909440301,-500.0,0.00027397,2]
[322236854,1712909440311,-501.75409507,0.00027397,2]
[322236855,1712909440320,-505.71998277,0.00027397,2]
[322236856,1712909440330,-500.0,0.00027397,2]
[322236857,1712909440339,-505.91066686,0.00027397,2]
[322236858,1712909440350,-500.0,0.00027397,2]
[322236859,1712909440360,-505.16836539,0.00027397,2]
[322236860,1712909440370,-505.91052923,0.00027397,2]
[322236861,1712909440388,-500.41075029,0.00027397,2]
[322236862,1712909440401,-500.0,0.00027397,2]
[322236863,1712909440412,-194.29173545,0.00027397,2]
[322236864,1712909440423,-500.0,0.00027397,2]
[322236865,1712909440433,-500.0,0.00027397,2]
[322236866,1712909440695,-526.01980568,0.00027397,2]
[322236867,1712909440706,-500.0,0.00027397,2]
[322236868,1712909440717,-500.0,0.00027397,2]
[322236869,1712909440728,-501.91713069,0.00027397,2]
[322236870,1712909440737,-500.0,0.00027397,2]
[322236871,1712909440747,-514.72908942,0.00027397,2]
[322236872,1712909440758,-466.60603008,0.00027397,2]
[322236873,1712909440769,-500.0,0.00027397,2]
[322236874,1712909440778,-500.0,0.00027397,2]
[322236875,1712909440787,-500.0,0.00027397,2]
[322236876,1712909440796,-500.0,0.00027397,2]
[322236877,1712909440806,-500.0,0.00027397,2]
[322236878,1712909440816,-506.78226596,0.00027397,2]
[322236879,1712909440826,-500.0,0.00027397,2]
[322236880,1712909440837,-500.90103391,0.00027397,2]
[322236881,1712909440845,-500.0,0.00027397,2]
[322236882,1712909440854,-520.37505445,0.00027397,2]
[322236883,1712909440865,-500.0,0.00027397,2]
[322236884,1712909440875,-520.05772625,0.00027397,2]
[322236885,1712909440886,-500.0,0.00027397,2]
[322236886,1712909440897,-500.0,0.00027397,2]
[322236887,1712909440906,-470.57970405,0.00027397,2]
[322236888,1712909440916,-500.0,0.00027397,2]
[322236889,1712909440925,-500.0,0.00027397,2]
[322236890,1712909440935,-500.0,0.00027397,2]
[322236891,1712909440946,-500.0,0.00027397,2]
[322236892,1712909440956,-500.10747463,0.00027397,2]
[322236893,1712909440965,-509.34808515,0.00027397,2]
[322236894,1712909440974,-501.00226464,0.00027397,2]
[322236895,1712909440985,-493.76882421,0.00027397,2]
[322236896,1712909440994,-500.0,0.00027397,2]
[322236897,1712909441007,-500.85201004,0.00027397,2]
[322236898,1712909441017,-176.2384359,0.00027397,2]
[322236899,1712909441026,-507.85147234,0.00027397,2]
[322236900,1712909441036,-500.0,0.00027397,2]
[322236901,1712909441045,-500.0,0.00027397,2]
[322236902,1712909441055,-500.0,0.00027397,2]
[322236903,1712909441064,-500.0,0.00027397,2]
[322236904,1712909441073,-508.94840733,0.00027397,2]
[322236905,1712909441083,-503.05716194,0.00027397,2]
[322236906,1712909441093,-500.0,0.00027397,2]
[322236907,1712909441104,-524.05291062,0.00027397,2]
[322236908,1712909441116,-504.21023796,0.00027397,2]
[322236909,1712909441127,-500.0,0.00027397,2]
[322236910,1712909441137,-500.0,0.00027397,2]
[322236911,1712909441146,-500.0,0.00027397,2]
[322236912,1712909441156,-500.4228832,0.00027397,2]
[322236913,1712909441168,-500.0,0.00027397,2]
[322236914,1712909441179,-500.98119995,0.00027397,2]
[322236915,1712909441188,-500.0,0.00027397,2]
[322236916,1712909441198,-500.0,0.00027397,2]
[322236917,1712909441207,-500.0,0.00027397,2]
[322236918,1712909441217,-500.96887526,0.00027397,2]
[322236919,1712909441226,-500.0,0.00027397,2]
[322236920,1712909441236,-500.0,0.00027397,2]
[322236921,1712909441245,-287.75191142,0.00027397,2]
[322236922,1712909441254,-500.0,0.00027397,2]
[322236923,1712909441264,-500.20643635,0.00027397,2]
[322236924,1712909441273,-500.0,0.00027397,2]
[322236925,1712909441283,-508.08473832,0.00027397,2]
[322236926,1712909441293,-499.18759813,0.00027397,2]
[322236927,1712909441303,-500.0,0.00027397,2]
[322236928,1712909441312,-500.0,0.00027397,2]
[322236929,1712909441321,-502.7684355,0.00027397,2]
[322236930,1712909441331,-500.0,0.00027397,2]
[322236931,1712909441340,-500.0,0.00027397,2]
[322236932,1712909441349,-500.0,0.00027397,2]
[322236933,1712909441358,-500.0,0.00027397,2]
[322236934,1712909441368,-502.77341379,0.00027397,2]
[322236935,1712909441377,-500.23747029,0.00027397,2]
[322236936,1712909441386,-500.0,0.00027397,2]
[322236937,1712909441396,-500.0,0.00027397,2]
[322236938,1712909441405,-500.0,0.00027397,2]
[322236939,1712909441414,-520.86503393,0.00027397,2]
[322236940,1712909441424,-500.0,0.00027397,2]
[322236941,1712909441435,-500.0,0.00027397,2]
[322236942,1712909441445,-497.55732596,0.00027397,2]
[322236943,1712909441454,-500.0,0.00027397,2]
[322236944,1712909441464,-500.0,0.00027397,2]
[322236945,1712909441474,-501.54787653,0.00027397,2]
[322236946,1712909441484,-500.0,0.00027397,2]
[322236947,1712909441494,-500.0,0.00027397,2]
[322236948,1712909441503,-500.0,0.00027397,2]
[322236949,1712909441513,-500.0,0.00027397,2]
[322236950,1712909441524,-500.0,0.00027397,2]
[322236951,1712909441538,-514.12902451,0.00027397,2]
[322236952,1712909441551,-504.07468954,0.00027397,2]
[322236953,1712909441561,-500.0,0.00027397,2]
[322236954,1712909441571,-500.0,0.00027397,2]
[322236955,1712909441581,-418.0038057,0.00027397,2]
[322236956,1712909441590,-500.0,0.00027397,2]
[322236957,1712909441600,-500.0,0.00027397,2]
[322236958,1712909441612,-500.0,0.00027397,2]
[322236959,1712909441622,-500.0,0.00027397,2]
[322236960,1712909441632,-500.0,0.00027397,2]
[322236961,1712909441642,-500.0,0.00027397,2]
[322236962,1712909441651,-500.0,0.00027397,2]
[322236963,1712909441661,-500.0,0.00027397,2]
[322236964,1712909441671,-157.50916922,0.00027397,2]
[322236965,1712909441682,-500.0,0.00027397,2]
[322236966,1712909441691,-500.0,0.00027397,2]
[322236967,1712909441702,-500.0,0.00027397,2]
[322236968,1712909441712,-500.0,0.00027397,2]
[322236969,1712909441722,-500.0,0.00027397,2]
[322236970,1712909441732,-519.89861801,0.00027397,2]
[322236971,1712909441742,-500.0,0.00027397,2]
[322236972,1712909441751,-500.0,0.00027397,2]
[322236973,1712909441761,-500.0,0.00027397,2]
[322236974,1712909441771,-500.0,0.00027397,2]
[322236975,1712909441781,-500.0,0.00027397,2]
[322236976,1712909441790,-500.0,0.00027397,2]
[322236977,1712909441800,-500.0,0.00027397,2]
[322236978,1712909441809,-517.58581916,0.00027397,2]
[322236979,1712909441819,-500.61186313,0.00027397,2]
[322236980,1712909441829,-500.0,0.00027397,2]
[322236981,1712909441838,-500.0,0.00027397,2]
[322236982,1712909441848,-500.0,0.00027397,2]
[322236983,1712909441857,-500.0,0.00027397,2]
[322236984,1712909441867,-403.14901794,0.00027397,2]
[322236985,1712909441877,-500.0,0.00027397,2]
[322236986,1712909441887,-500.0,0.00027397,2]
[322236987,1712909441896,-519.23456563,0.00027397,2]
[322236988,1712909441905,-222.11415467,0.00027397,2]
[322236989,1712909441915,-500.0,0.00027397,2]
[322236990,1712909441924,-500.0,0.00027397,2]
[322236991,1712909441934,-506.29595596,0.00027397,2]
[322236992,1712909441944,-500.0,0.00027397,2]
[322236993,1712909441953,-500.0,0.00027397,2]
[322236994,1712909441963,-500.0,0.00027397,2]
[322236995,1712909441973,-500.0,0.00027397,2]
[322236996,1712909441983,-515.14897453,0.00027397,2]
[322236997,1712909441992,-500.0,0.00027397,2]
[322236998,1712909442002,-502.81626967,0.00027397,2]
[322236999,1712909442013,-506.6596471,0.00027397,2]
[322237000,1712909442023,-500.0,0.00027397,2]
[322237001,1712909442032,-500.0,0.00027397,2]
[322237002,1712909442042,-493.88386948,0.00027397,2]
[322237003,1712909442051,-500.0,0.00027397,2]
[322237004,1712909442061,-500.0,0.00027397,2]
[322237005,1712909442070,-172.50071043,0.00027397,2]
[322237006,1712909442083,-500.0,0.00027397,2]
[322237007,1712909442092,-500.0,0.00027397,2]
[322237008,1712909442102,-500.0,0.00027397,2]
[322237009,1712909442112,-500.0,0.00027397,2]
[322237010,1712909442122,-500.0,0.00027397,2]
[322237011,1712909442131,-500.0,0.00027397,2]
[322237012,1712909442141,-500.0,0.00027397,2]
[322237013,1712909442153,-500.0,0.00027397,2]
[322237014,1712909442162,-501.77859672,0.00027397,2]
[322237015,1712909442172,-500.0,0.00027397,2]
[322237016,1712909442182,-500.0,0.00027397,2]
[322237017,1712909442194,-500.0,0.00027397,2]
[322237018,1712909442205,-500.0,0.00027397,2]
[322237019,1712909442215,-502.31187924,0.00027397,2]
[322237020,1712909442226,-500.0,0.00027397,2]
[322237021,1712909442235,-565.81952411,0.00027397,2]
[322237022,1712909442244,-500.0,0.00027397,2]
[322237023,1712909442254,-500.0,0.00027397,2]
[322237024,1712909442263,-503.34149057,0.00027397,2]
[322237025,1712909442272,-500.0,0.00027397,2]
[322237026,1712909442282,-500.0,0.00027397,2]
[322237027,1712909442291,-504.17320072,0.00027397,2]
[322237028,1712909442301,-500.80048544,0.00027397,2]
[322237029,1712909442312,-500.0,0.00027397,2]
[322237030,1712909442323,-500.0,0.00027397,2]
[322237031,1712909442332,-500.0,0.00027397,2]
[322237032,1712909442343,-500.0,0.00027397,2]
[322237033,1712909442353,-500.0,0.00027397,2]
[322237034,1712909442362,-507.18433537,0.00027397,2]
[322237036,1712909442372,-500.0,0.00027397,2]
[322237037,1712909442381,-500.0,0.00027397,2]
[322237038,1712909442390,-500.0,0.00027397,2]
[322237039,1712909442399,-515.77744112,0.00027397,2]
[322237041,1712909442409,-500.0,0.00027397,2]
[322237043,1712909442419,-500.0,0.00027397,2]
[322237045,1712909442429,-500.0,0.00027397,2]
[322237047,1712909442438,-534.44895384,0.00027397,2]
[322237049,1712909442447,-500.0,0.00027397,2]
[322237051,1712909442456,-500.0,0.00027397,2]
[322237053,1712909442466,-500.0,0.00027397,2]
[322237055,1712909442476,-500.0,0.00027397,2]
[322237057,1712909442485,-500.0,0.00027397,2]
[322237059,1712909442495,-500.0,0.00027397,2]
[322237061,1712909442506,-513.90303646,0.00027397,2]
[322237063,1712909442515,-500.0,0.00027397,2]
[322237065,1712909442526,-500.0,0.00027397,2]
[322237067,1712909442540,-500.0,0.00027397,2]
[322237069,1712909442550,-272.6558421,0.00027397,2]
[322237071,1712909442559,-500.0,0.00027397,2]
[322237073,1712909442569,-500.0,0.00027397,2]
[322237075,1712909442578,-500.0,0.00027397,2]
[322237077,1712909442588,-504.91686565,0.00027397,2]